Cogmind - Beta 9.2 @@@ ROGUE MODE // 2019.11.13 @ 14:33:43 Player: Demise Result: Destroyed by S-10 Pest with Light Assault Rifle Performance ------------- Evolutions (0) 0 Regions Visited (4) 800 Robots Destroyed (21) 105 Value Destroyed (377) 377 Prototype IDs (22) 440 Alien Tech Used (0) 0 Bonus (300) 300 TOTAL SCORE: 2022 Bonus ------- Aligned with FarCom 300 Cogmind --------- Core Integrity 0/250 Matter 292/300 Energy 265/265 System Corruption 0% Temperature Cool (73) Movement Rolling (120) Ox2 Location -9/Mines Parts ------- > --- POWER (1) -------- Improved Ion Engine > --- PROPULSION (2) --- Compact Wheel Compact Wheel > --- UTILITY (2) ------ Humpback > --- WEAPON (2) ------- Beam Cannon Minigun > --- INVENTORY (24) --- Improved Heat Sink High-capacity Storage Unit High-capacity Storage Unit Humpback Humpback Lightpack 2.0 Large Battery (300) Large Matter Pod (140) Improved Terrain Scanner Targeting Computer Melee Analysis Suite Improved Propulsion Shielding Light Armor Plating Reactive Plating Hacking Suite Tractor Beam Medium Laser Light Assault Rifle Grenade Launcher Mining Laser Heavy Mace Peak State ------------ > --- POWER ------------ Improved Ion Engine > --- PROPULSION ------- Compact Wheel Compact Wheel > --- UTILITY ---------- High-capacity Storage Unit High-capacity Storage Unit > --- WEAPON ----------- Beam Cannon Minigun > --- INVENTORY -------- Improved Heat Sink Lightpack 2.0 Large Battery Large Matter Pod Improved Terrain Scanner Targeting Computer Melee Analysis Suite Improved Propulsion Shielding Light Armor Plating Reactive Plating Hacking Suite Tractor Beam Improved Trap Extractor Medium Laser Light Assault Rifle Grenade Launcher Mining Laser Heavy Mace [Rating: 15] Favorites ----------- Power Improved Ion Engine Engine Improved Ion Engine Propulsion Compact Wheel Leg Aluminum Leg Wheel Compact Wheel Utility High-capacity Storage Unit Device Improved Terrain Scanner Storage High-capacity Storage Unit Processor Seismic Analyzer Weapon Beam Cannon Energy Gun Heavy EM Pulse Gun Energy Cannon Beam Cannon Ballistic Gun Assault Rifle Impact Weapon Heavy Mace Build | -11 -10 -10 -10 -9 ------- Run | Scr Mat Min Exi Min Slots Evolved . | . . . . . Power . | . . . . . Propulsion . | . . . . . Utility . | . . . . . Weapon . | . . . . . Parts Attached 27 | 4 4 18 1 . Power 2 | . 1 1 . . Engine 2 | . 1 1 . . Core . | . . . . . Reactor . | . . . . . Propulsion 3 | . . 3 . . Treads . | . . . . . Leg 1 | . . 1 . . Wheel 2 | . . 2 . . Hover . | . . . . . Flight . | . . . . . Utility 12 | 4 1 6 1 . Device 4 | 2 1 1 . . Storage 6 | . . 5 1 . Processor 2 | 2 . . . . Hackware . | . . . . . Protection . | . . . . . Artifact . | . . . . . Weapon 10 | . 2 8 . . Energy Gun 2 | . 1 1 . . Energy Cannon 1 | . . 1 . . Ballistic Gun 6 | . 1 5 . . Ballistic Cannon . | . . . . . Launcher . | . . . . . Special Weapon . | . . . . . Impact Weapon 1 | . . 1 . . Slashing Weapon . | . . . . . Piercing Weapon . | . . . . . Special Melee Weapon . | . . . . . Unidentified Prototypes . | . . . . . Parts Lost 4 | . . 3 1 . Power 1 | . . 1 . . Propulsion . | . . . . . Utility 1 | . . . 1 . Weapon 2 | . . 2 . . Highest Loss Streak 2 | . . 2 1 . Average Slot Usage (%) 98 | . 97 99 97 85 Engine 13 | . 14 13 14 14 Leg 8 | . 28 4 . . Wheel 19 | . . 23 28 28 Device 3 | . 12 1 . . Storage 15 | . . 17 25 14 Processor 8 | . 14 9 . . Energy Gun 3 | . 9 2 . . Energy Cannon 8 | . . 9 14 14 Ballistic Gun 14 | . 17 12 14 14 Impact Weapon 1 | . . 2 . . Naked Turns . | . . . . . Heaviest Build 93 | 12 13 78 93 93 Greatest Support 32 | 20 20 32 32 32 Greatest Overweight (x) 2 | . . 2 2 2 Average Overweight (x) 1 | . . 1 2 2 Largest Inventory Capacity 24 | 6 4 20 24 24 Average Capacity 12 | 4 4 13 20 24 Most Carried 24 | 6 4 17 24 24 Average Carried 10 | 3 3 11 18 24 Final Capacity 24 | 4 4 20 24 24 Final Carried 24 | 4 4 17 24 24 Class Distribution -------------------- 39% | Hauler-Mutant 34% | Mutant 25% | Scavenger-Mutant Dominant Class ---------------- Mutant | -10/Materials Scavenger-Mutant | -10/Mines Hauler-Mutant | -10/Exiles Hauler-Mutant | -9/Mines Resources | -11 -10 -10 -10 -9 ----------- Run | Scr Mat Min Exi Min Matter Collected 842 | 353 49 430 10 . Remotely 50 | 50 . . . . Salvage Created 776 | 271 102 390 . 13 Parts 54 | 21 4 27 . 2 Haulers Intercepted 1 | . 1 . . . Recyclers Shooed . | . . . . . Parts Field Recycled . | . . . . . Retrieved Matter . | . . . . . Parts Self-Destructed . | . . . . . Prevented . | . . . . . Kills | -11 -10 -10 -10 -9 ------- Run | Scr Mat Min Exi Min Combat Hostiles Destroyed 11 | . 1 9 . 1 Guns 9 | . 1 8 . . Cannons 2 | . . 1 . 1 Classes Destroyed 7 | 3 2 2 . . Worker 2 | 2 . . . . Tunneler 5 | 5 . . . . Hauler 1 | . 1 . . . Recycler 2 | 1 . 1 . . Swarmer 4 | . . 3 . 1 Grunt 5 | . 1 4 . . Sentry 2 | . . 2 . . Best Kill Streak 4 | 4 1 3 . 1 Combat Bots Only 3 | . 1 3 . 1 Max Kills in Single Turn 2 | 2 1 2 . 1 Gunslinging 1 | . . 1 . . Exploded . | . . . . . Melee . | . . . . . Uniques/NPCs Destroyed . | . . . . . Combat | -11 -10 -10 -10 -9 -------- Run | Scr Mat Min Exi Min Damage Taken 784 | . . 751 . 33 Core 252 | . . 228 . 24 Absorbed by Shields . | . . . . . Core Remaining (%) 100 | 100 . . . . Volleys Fired 44 | 11 3 28 . 2 Largest 2 | 2 2 2 . 2 Hottest 98 | 40 65 98 . 85 Shots Fired 85 | 22 6 53 . 4 Gun 77 | 22 6 47 . 2 Cannon 8 | . . 6 . 2 Launcher . | . . . . . Special . | . . . . . Kinetic 67 | 22 3 40 . 2 Thermal 12 | . . 10 . 2 Explosive . | . . . . . Electromagnetic 6 | . 3 3 . . Robot Hit Streak 9 | 4 2 9 . 2 Robot Miss Streak 2 | 2 1 2 . 1 Penetration Max . | . . . . . Secondary Targets 1 | . . 1 . . Max Gunslinging Chain 1 | . . 1 . . Shots Hit Robots 55 | 11 3 39 . 2 Core Hits 27 | 9 2 15 . 1 Critical Hits 2 | . . 2 . . Critical Kills 1 | . . 1 . . Critical Parts Destroyed 1 | . . 1 . . Melee Attacks 7 | . . 7 . . Impact 7 | . . 7 . . Slashing . | . . . . . Piercing . | . . . . . Sneak Attacks . | . . . . . Combat Hostiles . | . . . . . Follow-up Attacks . | . . . . . Damage Inflicted 877 | 167 30 663 . 17 Guns 789 | 167 30 592 . . Cannons 88 | . . 71 . 17 Explosions . | . . . . . Melee . | . . . . . Ramming . | . . . . . Kinetic 664 | 167 . 497 . . Thermal 157 | . . 140 . 17 Explosive . | . . . . . Electromagnetic 56 | . 30 26 . . Impact . | . . . . . Slashing . | . . . . . Piercing . | . . . . . Highest Corruption . | . . . . . Average Corruption . | . . . . . Corruption Purged . | . . . . . Overload Shots . | . . . . . Overflow Damage . | . . . . . Projectiles . | . . . . . Explosions . | . . . . . Melee . | . . . . . Knockbacks . | . . . . . Impact . | . . . . . Kinetic . | . . . . . Secondary . | . . . . . Self-Inflicted Damage . | . . . . . Shots . | . . . . . Rammed . | . . . . . Targets Rammed . | . . . . . Kicked . | . . . . . Crushed . | . . . . . Highest Temperature 168 | 6 6 168 . 73 Average Temperature 48 | 6 4 54 . 43 Received Heat Transfer 234 | . . 234 . . Siege Activations . | . . . . . Robots Corrupted . | . . . . . Combat Hostiles . | . . . . . Parts Fried . | . . . . . Impact Corruptions . | . . . . . Robots Melted . | . . . . . Combat Hostiles . | . . . . . Parts Melted . | . . . . . Heat Transferred 333 | . . 296 . 37 Parts Sabotaged . | . . . . . Parts Stolen . | . . . . . Parts Stripped . | . . . . . Power Chain Reactions . | . . . . . Missiles Intercepted . | . . . . . Alert | -11 -10 -10 -10 -9 ------- Run | Scr Mat Min Exi Min Peak Influence 189 | 40 127 189 . 20 Average Influence 70 | 21 71 78 . 1 Maximum Alert Level . | . . . . . Low Security (%) 100 | 100 100 100 . 100 Level 1 . | . . . . . Level 2 . | . . . . . Level 3 . | . . . . . Level 4 . | . . . . . Level 5 . | . . . . . High Security . | . . . . . Max Security . | . . . . . Squads Dispatched . | . . . . . Investigation . | . . . . . Extermination . | . . . . . Reinforcement . | . . . . . Assault . | . . . . . Garrison . | . . . . . Intercept . | . . . . . Construction Impeded . | . . . . . Haulers Reinforced . | . . . . . Stealth | -11 -10 -10 -10 -9 --------- Run | Scr Mat Min Exi Min Distress Signals 1 | . 1 . . . Communications Jammed . | . . . . . Distress Signals . | . . . . . Times Spotted 19 | . 4 12 . 3 Peak Tracking Total 3 | . 2 3 . 3 Tactical Retreats 3 | . . 3 . . Traps | -11 -10 -10 -10 -9 ------- Run | Scr Mat Min Exi Min Traps Triggered 3 | . 1 2 . . Indirectly . | . . . . . Trap Hack Attempts . | . . . . . Triggered . | . . . . . Disarmed . | . . . . . Reprogrammed . | . . . . . Reused . | . . . . . Traps Extracted . | . . . . . Installed . | . . . . . Triggered . | . . . . . Machines | -11 -10 -10 -10 -9 ---------- Run | Scr Mat Min Exi Min Machines Disabled . | . . . . . Max in Single Turn . | . . . . . Machines Sabotaged . | . . . . . Garrisons Compromised . | . . . . . Overloaded Fab Kills . | . . . . . Fab Network Shutdowns . | . . . . . Hacking | -11 -10 -10 -10 -9 --------- Run | Scr Mat Min Exi Min Machines Accessed 5 | . 3 1 1 . Terminals 2 | . 2 . . . Fabricators . | . . . . . Repair Stations 1 | . 1 . . . Recycling Units . | . . . . . Scanalyzers . | . . . . . Garrison Access . | . . . . . Total Hacks 12 | . 10 1 1 . Successful 9 | . 7 1 1 . Failed 3 | . 3 . . . Catastrophic . | . . . . . Database Lockouts . | . . . . . Manual 10 | . 8 1 1 . Terminals 8 | . 8 . . . Fabricators . | . . . . . Repair Stations 2 | . 2 . . . Recycling Units . | . . . . . Scanalyzers . | . . . . . Garrison Access . | . . . . . Terminal Hacks 5 | . 3 1 1 . Part Schematic 2 | . 2 . . . Open Door 1 | . . 1 . . Branch Access Points 1 | . 1 . . . EX-Prototype ID Bank 1 | . . . 1 . Fabricator Hacks . | . . . . . Repair Station Hacks 2 | . 2 . . . Scan Component 1 | . 1 . . . Repair 1 | . 1 . . . Recycling Unit Hacks . | . . . . . Scanalyzer . | . . . . . Garrison Access Hacks . | . . . . . Unauthorized Hacks 5 | . 5 . . . Terminals 2 | . 2 . . . Botnet 2 | . 2 . . . Fabricators . | . . . . . Repair Stations . | . . . . . Recycling Units . | . . . . . Scanalyzers . | . . . . . Garrison Access . | . . . . . Data Cores Recovered . | . . . . . Used . | . . . . . Hacking Detections 3 | . 3 . . . Full Trace Events . | . . . . . Feedback Events . | . . . . . Feedback Blocked . | . . . . . Robot Schematics Acquired . | . . . . . Robots Built . | . . . . . Matter . | . . . . . Time . | . . . . . Total Robot Build Rating . | . . . . . Part Schematics Acquired 2 | . 2 . . . Parts Built . | . . . . . Matter . | . . . . . Time . | . . . . . Total Part Build Rating . | . . . . . Parts Repaired 1 | . 1 . . . Time 32 | . 32 . . . Parts Recycled . | . . . . . Recycled Matter . | . . . . . Retrieved Matter . | . . . . . Retrieved Components . | . . . . . Parts Scanalyzed . | . . . . . Part Schematics Acquired . | . . . . . Parts Damaged . | . . . . . Bothacking | -11 -10 -10 -10 -9 ------------ Run | Scr Mat Min Exi Min Used RIF Installer . | . . . . . Robots Hacked . | . . . . . Non-combat . | . . . . . Combat . | . . . . . Robot Hacks Applied . | . . . . . Relay Couplers Released . | . . . . . Robots Rewired . | . . . . . Allies Hacked . | . . . . . Hacks Repelled . | . . . . . Allies | -11 -10 -10 -10 -9 -------- Run | Scr Mat Min Exi Min Total Allies . | . . . . . Largest Group . | . . . . . Highest-Rated Group . | . . . . . Highest-Rated Ally . | . . . . . Total Orders . | . . . . . Ally Attacks . | . . . . . Total Damage . | . . . . . Kills . | . . . . . Allies Corrupted . | . . . . . Allies Melted . | . . . . . Intel | -11 -10 -10 -10 -9 ------- Run | Scr Mat Min Exi Min Robot Analysis Total . | . . . . . Derelict Logs Recovered 1 | . . 1 . . Drone Launches . | . . . . . Drone Recoveries . | . . . . . Exploration | -11 -10 -10 -10 -9 ------------- Run | Scr Mat Min Exi Min Turns Passed 1744 | 115 365 881 362 21 Spaces Moved 1166 | 35 257 581 284 9 Core . | . . . . . Treads . | . . . . . Legs 355 | 35 257 63 . . Wheels 811 | . . 518 284 9 Hover . | . . . . . Flight . | . . . . . Fastest Speed 100 | 120 120 100 120 120 Average Speed 117 | 120 120 115 120 120 Slowest Speed 150 | 120 120 150 120 120 Overloaded Moves . | . . . . . Propulsion Burnouts . | . . . . . Robots Hopped . | . . . . . Cave-ins Triggered . | . . . . . Exploration Rate (%) 40 | 3 39 86 69 6 Regions Visited 4 Branch Regions 3 Pre-discovered Areas . | . . . . . Known Exits Taken 1 | . 1 . . . Unknown Exits Taken 3 | 1 . 1 1 . Scrap Searched 4 | . . 4 . . Spaces Dug 6 | . . 6 . . Terrain Destroyed 11 | . . 11 . . Melee 6 | . . 6 . . Projectile 5 | . . 5 . . AOE . | . . . . . Actions | -11 -10 -10 -10 -9 --------- Run | Scr Mat Min Exi Min Total 1441 | 87 308 725 305 16 Wait 135 | 28 39 63 . 5 Move 1162 | 34 256 580 283 9 Hop . | . . . . . Pick Up 42 | 4 2 17 19 . Fast Attach 12 | 1 4 6 1 . Attach 2 | . . 2 . . Detach 2 | . . 2 . . Swap 13 | 3 . 10 . . Drop 22 | 6 4 10 2 . Fire 44 | 11 3 28 . 2 Melee 7 | . . 7 . . Ram . | . . . . . Kick . | . . . . . Crush . | . . . . . Escape Stasis . | . . . . . Rewire . | . . . . . Trap . | . . . . . Miscellaneous . | . . . . . Route ------- -11/Scrapyard -10/Materials -10/Mines (discovered 2 exits: [*Mat] / *Exi) -10/Exiles (discovered 2 exits: [*Min x2]) -9/Mines History --------- Turn | Location | Event 14 | -11/Scrapyard | Discovered new exit (range 3) 116 | -11/Scrapyard | Entered Materials 119 | -10/Materials | Identified exit to Mines 179 | -10/Materials | Repaired Imp. Terrain Scanner 309 | -10/Materials | Build established: Mutant 481 | -10/Materials | Entered Mines 544 | -10/Mines | A weapon hastily lodged in a ceiling crevice suddenly fell to the ground 733 | -10/Mines | Core integrity fell below 50% 741 | -10/Mines | Core integrity fell below 20% 814 | -10/Mines | Discovered new exit (range 6) 894 | -10/Mines | Build established: Scavenger-Mutant 899 | -10/Mines | Learned Materials terminal intel 979 | -10/Mines | Met a Derelict who couldn't figure out how to use a Trap Extractor 1308 | -10/Mines | Deemed a non-threat by the Exiles lab entrance 1308 | -10/Mines | Discovered new exit (range 5) 1345 | -10/Mines | Build established: Hauler-Mutant 1362 | -10/Mines | Entered Exiles 1382 | -10/Exiles | Discovered new exit (range 15) 1395 | -10/Exiles | Met 8R-AWN 1412 | -10/Exiles | Met EX-HEX 1445 | -10/Exiles | Met EX-BIN 1458 | -10/Exiles | Aligned with FarCom system 1460 | -10/Exiles | Given EX-Vault access code 1488 | -10/Exiles | Opened EX-Vault 1494 | -10/Exiles | Found Lightpack 2.0 1519 | -10/Exiles | Warned to stay clear of 0b10 Research branches 1552 | -10/Exiles | Met EX-DEC 1710 | -10/Exiles | Discovered new exit (range 14) 1724 | -10/Exiles | Left Exiles lab with Lightpack 2.0 1724 | -10/Exiles | Entered Mines 1745 | -9/Mines | Destroyed by S-10 Pest with Light Assault Rifle Last Messages --------------- 01672_ Acquired Hacking Suite. 01674_ Acquired Melee Analysis Suite. 01675_ Extracted 2 energy. 01676_ Acquired Lrg. Battery. 01678_ Acquired Targeting Computer. 01681_ Acquired Grenade Launcher. 01682_ Extracted 10 matter. 01683_ Acquired Lrg. Matter Pod. 01685_ Acquired Imp. Propulsion Shielding. 01687_ Acquired Lgt. Armor Plating. 01689_ Acquired Mining Laser. 01692_ Acquired Hvy. Mace. 01694_ Acquired Imp. Terrain Scanner. 01710_ EXIT=FOUND LOCATION=UNKNOWN GOAL=ESCAPE 01724_ Receiving FarCom transmissions... 01725_ K-01 Serf collects debris. 01743_ S-10 Pest destroyed. 01745_ K-01 Serf collects debris. Map ----- +----------------------------------------------------+ | ???????????????????????????????????????? | | ???????????????????????????????????????? | | ???????????????????????????????????????? | | ???????????????????????????????????????? | | ???????????????????????????????????????? | | ???????????????????????????????????????? | | ???????????????????????????????????????? | | ???????????????????????????????????????? | | ???????????????????????????????????????? | | ???????????????????????????????????????? | | ???????????????????????????????????????? | | ???????????????????????????????????????? | | ???????????????????????????????????????? | | ???????????????????????????????????????? | | ???????????????????????????????????????? | | ???????????????????????????????????????? | | ???????????????????????????????????????? | | ???????? ?????????????????????????????? | | ???????? ????############??????????? | | ??????? ### #??????????? | | ???????? #??????????? | | ???????????????### #??????????? | | ?????????????????# #??????????? | | ?????????????????#### ### ###??????????? | | ????????????????????# #?#k#????????????? | | ?????????# #### ###@##???????????? | | ???????????????# sst #???????????? | | ???????????????# ######### #???????????? | | ?????????????????????????? #???????????? | | ?????????????????????????? #???????????? | | ?????????????????????????? #???????????? | | ???????????????????????????#???????????? | | ???????????????????????????????????????? | | ???????????????????????????????????????? | | ???????????????????????????????????????? | | ???????????????????????????????????????? | | ???????????????????????????????????????? | | ???????????????????????????????????????? | | ???????????????????????????????????????? | | ???????????????????????????????????????? | | ???????????????????????????????????????? | | ???????????????????????????????????????? | | ???????????????????????????????????????? | | ???????????????????????????????????????? | | ???????????????????????????????????????? | | | | | | | | | | | +----------------------------------------------------+ Best States ------------- Heat Dissipation 25 Energy Generation 12 Energy Capacity 265 Matter Stores 300 Matter Capacity 300 Sight Range 16 Terrain Scan Range 16 Terrain Scan Density 60 Evasion (%) 40 Item Schematics ----------------- Hcp. Storage Unit | -10/Materials | Hacked Hcp. Matter Pod | -10/Materials | Hacked Robot Schematics ------------------ None Fabricated ------------ Nothing Alien Tech Used ----------------- None Achievements -------------- None Challenges ------------ None Game ------ Seed GammaStorageAutohacker Manual? 0 Play Time 00:22:06 Cumulative 115.8 hours Start 2019.11.13 @ 14:11:47 End 2019.11.13 @ 14:33:43 Sessions 1 Manual Loads 0 Difficulty Rogue Special Mode None Game No. 153 Rogue 142 Adventurer 11 Explorer 0 Win Type - Total 0 Types 0/0/0/0/0/0/0 Lore% 43 Gallery% 54 Achievement% 37 Wizard Run 0 Options --------- ASCII 0 Keyboard 1 Movement Numpad Keybinds 0 Fullscreen 1 Font 12/Terminus Map View 83x54 Tactical HUD 1 Map Filters NONE Filters NONE Steam 1 RUN: 3a5b1066-85e8-47b1-9459-e9e11d34506c